bitfinex/quotes_ETHUSD_20250511
["timestamp","ask_amount","ask_price","bid_price","bid_amount"]
[1746983343640,0.86253804,2479.0,2478.4,8.0]
[1746983343857,0.13292439,2478.9,2478.3,14.514]
[1746983344146,0.04033804,2478.8,2478.3,14.514]
[1746983344301,0.04033804,2478.8,2478.2,3.381]
[1746983344719,0.13144384,2478.7,2478.2,3.381]
[1746983345361,0.8222,2478.6,2477.6,5.885]
[1746983345564,3.9813967,2478.1,2477.4,5.885]
[1746983345865,3.9813967,2478.1,2477.2,9.266]
[1746983345866,0.04033804,2478.0,2477.2,9.266]
[1746983346070,3.9813967,2477.8,2477.1,0.05]
[1746983346274,0.17044907,2477.7,2477.1,0.05]
[1746983346589,0.8222,2477.9,2477.1,0.05]
[1746983346883,0.13011103,2477.8,2477.1,0.05]
[1746983347052,0.8222,2477.9,2477.3,8.0]
[1746983347247,0.8222,2477.9,2477.4,1.3885]
[1746983347570,0.13011103,2477.8,2477.4,1.3885]
[1746983347778,0.17044907,2477.8,2477.2,5.885]
[1746983348075,4.15184577,2477.8,2477.1,0.05]
[1746983348465,0.8222,2477.7,2477.1,0.05]
[1746983348870,0.8222,2477.7,2477.1,0.09036219]
[1746983351485,0.8222,2477.7,2477.1,8.09036219]
[1746983351686,0.8222,2477.7,2477.1,9.51116495]
[1746983351982,0.8222,2477.7,2477.1,8.09036219]
[1746983352662,0.04033804,2477.6,2477.1,8.09036219]
[1746983353502,0.04033804,2477.6,2477.1,0.05]
[1746983353784,0.11895322,2477.5,2477.1,0.05]
[1746983354282,0.11895322,2477.5,2477.1,8.05]
[1746983354789,0.04033804,2477.6,2477.1,8.05]
[1746983354974,0.52473151,2477.6,2477.1,8.05]
[1746983355182,0.11890382,2477.5,2477.1,8.05]
[1746983355496,0.8222,2477.7,2477.1,8.09036288]
[1746983355663,0.04033804,2477.6,2477.1,8.05]
[1746983355852,0.04033804,2477.6,2477.1,0.05]
[1746983356251,0.11845921,2477.5,2477.1,0.05]
[1746983357672,0.1183604,2477.4,2477.1,0.05]
[1746983357873,0.04033804,2477.6,2477.1,0.05]
[1746983358072,0.1183604,2477.5,2477.1,0.05]
[1746983360394,0.04033804,2477.4,2477.1,0.05]
[1746983360893,0.11821219,2477.3,2477.1,0.05]
[1746983361283,0.04033804,2477.6,2477.1,0.05]
[1746983361589,0.11821219,2477.5,2477.1,0.05]
[1746983361787,0.04033804,2477.4,2477.1,0.05]
[1746983361992,0.8289,2477.3,2477.1,0.05]
[1746983362983,0.8289,2477.8,2477.1,0.05]
[1746983363151,0.86923804,2477.8,2477.1,0.05]
[1746983363358,0.53027649,2477.7,2477.1,0.05]
[1746983363576,0.04033804,2477.6,2477.1,0.05]
[1746983364289,0.11485269,2477.5,2477.1,0.05]
[1746983367013,0.11485269,2477.5,2477.1,0.09037026]
[1746983367312,0.04033804,2477.7,2477.1,0.09037026]
[1746983367515,0.11371608,2477.6,2477.1,0.09037026]
[1746983367683,0.04033804,2477.7,2477.1,0.05]
[1746983367881,0.11371608,2477.6,2477.1,0.05]
[1746983368591,3.79298888,2477.5,2477.1,0.05]
[1746983368907,0.8191,2477.3,2477.1,0.05]
[1746983369109,0.15502466,2477.2,2477.1,0.05]
[1746983369614,3.9076755,2477.2,2477.1,0.05]
[1746983370013,0.11468662,2477.2,2477.1,0.05]
[1746983370178,0.15502466,2477.2,2477.1,0.05]
[1746983370379,0.8191,2477.3,2477.1,0.05]
[1746983370580,0.15418457,2477.2,2477.1,0.05]
[1746983372241,0.70418457,2477.2,2477.1,0.05]
[1746983372598,0.66384653,2477.2,2477.1,0.05]
[1746983373128,0.70418457,2477.2,2477.1,0.05]
[1746983373694,4.45683541,2477.2,2477.1,0.05]
[1746983373927,5.802796,2477.2,2477.1,0.05]
[1746983374113,1.45980712,2477.2,2477.1,0.05]
[1746983374311,0.11384653,2477.2,2477.1,0.05]
[1746983374511,0.7793,2477.5,2477.1,0.05]
[1746983374715,0.14950483,2477.4,2477.1,0.05]
[1746983375636,3.75265084,2477.2,2477.1,0.05]
[1746983375839,5.12228888,2477.2,2477.1,0.05]
[1746983376063,5.75558988,2477.2,2477.1,0.05]
[1746983376413,9.79240563,2477.2,2477.1,0.05]
[1746983377264,5.75558988,2477.2,2477.1,0.05]
[1746983377612,9.79240563,2477.2,2477.1,0.05]
[1746983378451,17.79240563,2477.2,2477.1,0.05]
[1746983378679,17.75206759,2477.2,2477.1,0.05]
[1746983380741,18.05517523,2477.2,2477.1,0.05]
[1746983381468,1.3333,2476.7,2476.1,0.05]
[1746983381765,4.43621929,2476.6,2476.1,0.05]
[1746983383067,0.10615044,2476.6,2476.1,0.05]
[1746983383269,0.7833,2477.0,2476.1,4.0305]
[1746983383455,0.7833,2477.0,2476.2,0.04037967]
[1746983383710,0.10189755,2476.9,2476.4,8.0]
[1746983384013,0.7833,2477.0,2476.4,8.0]
[1746983384531,0.04033804,2476.9,2476.4,8.0]
[1746983384730,0.10298569,2476.8,2476.4,8.0]
[1746983384897,0.10298569,2476.8,2476.3,3.261]
[1746983385099,0.04033804,2476.7,2476.3,3.261]
[1746983385326,0.10441976,2476.6,2476.3,3.261]
[1746983385621,0.04033804,2476.9,2476.3,3.261]
[1746983385783,0.49796693,2476.9,2476.3,3.261]
[1746983385984,0.10432087,2476.8,2476.3,3.261]
[1746983386327,0.04033804,2476.7,2476.3,3.261]
[1746983386500,0.04033804,2476.8,2476.3,3.261]
[1746983386824,0.10417253,2476.7,2476.3,3.261]
[1746983387124,0.04033804,2476.8,2476.3,3.261]
[1746983387299,0.10417253,2476.7,2476.3,3.261]
[1746983387626,0.04033804,2476.8,2476.3,3.261]
[1746983388093,0.10417253,2476.7,2476.3,3.261]
[1746983388298,0.04033804,2476.8,2476.3,3.261]
[1746983388610,0.10417253,2476.7,2476.3,3.261]
[1746983388912,0.04033804,2476.8,2476.3,3.261]
[1746983389225,0.10432087,2476.7,2476.3,3.261]
[1746983389607,0.04033804,2476.8,2476.4,8.0]
[1746983390228,0.10417253,2476.7,2476.4,8.0]
[1746983390530,0.04033804,2476.9,2476.4,9.1261]
[1746983390830,0.10417253,2476.8,2476.4,8.0]
[1746983399436,3.85682337,2476.8,2476.4,8.0]
[1746983399629,0.04033804,2476.7,2476.4,8.0]
[1746983400144,0.10748587,2476.6,2476.4,8.0]
[1746983400543,0.04033804,2476.9,2476.4,8.0]
[1746983400728,0.10748587,2476.8,2476.4,8.0]
[1746983401412,3.86013671,2476.8,2476.4,8.0]
[1746983401750,0.04033804,2476.7,2476.4,8.0]
[1746983401912,0.1076342,2476.6,2476.4,8.0]
[1746983402745,0.04033804,2477.2,2476.4,8.0]
[1746983403038,0.10758476,2477.1,2476.4,8.0]
[1746983403210,0.04033804,2477.0,2476.4,8.0]
[1746983403741,0.10758476,2476.9,2476.4,8.0]
[1746983404412,0.10758476,2476.9,2476.5,0.040378]
[1746983404611,0.7815,2477.3,2476.5,0.040378]
[1746983404810,0.10758476,2476.8,2476.5,0.040378]
[1746983405056,0.7815,2477.6,2476.6,8.823]
[1746983405210,0.7815,2477.6,2476.7,0.0403713]
[1746983405410,0.04033804,2477.5,2476.7,0.0403713]
[1746983406210,3.75265084,2477.1,2476.5,8.969]
[1746983406407,3.75265084,2477.1,2476.5,3.084]
[1746983406408,1.19710312,2477.0,2476.5,3.084]
[1746983406650,1.19710312,2477.0,2476.3,3.261]
[1746983406952,1.19710312,2477.0,2476.4,8.0]
[1746983407530,0.775,2477.3,2476.4,8.0]
[1746983407846,0.04033804,2477.2,2476.4,8.04037934]
[1746983408058,3.75265084,2477.4,2476.4,8.04037934]
[1746983408833,0.04033804,2477.3,2476.4,8.04037934]
[1746983409032,3.75265084,2477.1,2476.4,8.0]
[1746983409239,0.04033804,2477.0,2476.4,3.133]
[1746983409461,3.75265084,2476.5,2476.1,0.05]
[1746983409633,3.75265084,2476.2,2476.1,0.05]
[1746983410279,3.79298888,2476.2,2476.1,0.05]
[1746983410781,4.34298888,2476.2,2476.1,0.05]
[1746983410944,5.25793454,2476.2,2476.1,0.05]
[1746983411148,5.2175965,2476.2,2476.1,0.05]
[1746983411455,5.25793454,2476.2,2476.1,0.05]
[1746983412482,0.7681,2476.7,2476.1,0.05]
[1746983412766,0.04033804,2476.6,2476.1,0.05]
[1746983414430,3.75265084,2476.5,2476.1,0.05]
[1746983414645,0.04033804,2476.4,2476.1,0.05]
[1746983414827,5.05465084,2476.2,2476.1,0.05]
[1746983415057,5.56414973,2476.2,2476.1,0.05]
[1746983415369,5.60448777,2476.2,2476.1,0.05]
[1746983415777,9.64293377,2476.2,2476.1,0.05]
[1746983415974,5.60448777,2476.2,2476.1,0.05]
[1746983416482,5.05448777,2476.2,2476.1,0.05]
[1746983416629,3.79298888,2476.2,2476.1,0.05]
[1746983417269,3.75265084,2476.2,2476.1,0.05]
[1746983417626,4.30265084,2476.2,2476.1,0.05]
[1746983418167,8.38143488,2476.2,2476.1,0.05]
[1746983418373,10.37539254,2476.2,2476.1,0.05]
[1746983418665,3.75265084,2475.5,2474.9,3.9185]
[1746983418854,0.04033804,2475.4,2474.9,3.9185]
[1746983419271,0.10511142,2475.3,2474.9,3.9185]
[1746983419473,0.10511142,2475.3,2475.0,8.0]
[1746983419870,0.10511142,2475.3,2474.9,3.9185]
[1746983420951,0.10511142,2475.3,2475.0,8.0]
[1746983421180,0.04033804,2475.7,2475.0,8.0]
[1746983421361,0.10511142,2475.6,2475.0,8.04039892]
[1746983423397,0.04033804,2475.7,2475.1,1.25088989]
[1746983423602,0.09724658,2475.5,2475.1,0.05]
[1746983423763,0.04033804,2475.7,2475.1,0.05]
[1746983423764,0.04033804,2475.7,2475.1,0.09039774]
[1746983423965,0.09724658,2475.6,2475.1,0.09039774]
[1746983425062,0.09724658,2475.6,2475.2,8.0]
[1746983425362,0.09724658,2475.5,2475.2,8.0]
[1746983425599,0.04033804,2476.0,2475.2,9.43389545]
[1746983425763,0.09724658,2475.4,2475.2,1.43389545]
[1746983425967,0.04033804,2476.0,2475.2,1.43389545]
[1746983426167,0.09724658,2475.9,2475.2,1.43389545]
[1746983426395,0.09724658,2475.9,2475.3,0.786]
[1746983426565,0.04033804,2476.0,2475.4,0.22198955]
[1746983426763,0.09724658,2475.9,2475.3,0.786]
[1746983429207,3.75265084,2475.8,2475.3,0.786]
[1746983429380,0.04033804,2475.7,2475.3,0.786]
[1746983429915,0.09724658,2475.6,2475.1,11.084]
[1746983430666,3.79298888,2475.5,2475.1,3.084]
[1746983430891,0.56553631,2475.4,2475.1,3.084]
[1746983431213,0.04033804,2475.3,2475.1,3.084]
[1746983431409,0.04033804,2475.3,2475.1,0.05]
[1746983431590,0.09650467,2475.2,2475.1,0.05]
[1746983431907,0.19875931,2475.2,2475.1,0.05]
[1746983432077,3.75265084,2475.2,2475.1,0.05]
[1746983432283,4.17893208,2475.2,2475.1,0.05]
[1746983432529,4.37640466,2475.2,2475.1,0.05]
[1746983433075,0.19747258,2475.2,2475.1,0.05]
[1746983433385,0.04033804,2475.4,2475.1,0.05]
[1746983433582,0.19742308,2475.3,2475.1,0.05]
[1746983434583,0.04033804,2475.2,2475.1,0.05]
[1746983435125,0.19742308,2475.2,2475.1,0.05]
[1746983435481,0.04033804,2475.4,2475.1,0.05]
[1746983435731,0.19742308,2475.3,2475.1,0.05]
[1746983435898,0.04033804,2475.2,2475.1,0.05]
[1746983436383,0.23776112,2475.2,2475.1,0.05]
[1746983437482,3.99041196,2475.2,2475.1,0.05]
[1746983437880,4.54041196,2475.2,2475.1,0.05]
[1746983438216,5.04046305,2475.2,2475.1,0.05]
[1746983438428,4.49046305,2475.2,2475.1,0.05]
[1746983440747,5.04046305,2475.2,2475.1,0.05]
[1746983440951,9.88544061,2475.2,2475.1,0.05]
[1746983441250,0.8049,2475.1,2474.1,0.05]
[1746983441435,3.75265084,2474.3,2474.1,0.05]
[1746983441745,0.04033804,2474.2,2474.1,0.05]
[1746983441921,0.23355355,2474.2,2474.1,0.05]
[1746983442551,0.19321551,2474.2,2474.1,0.05]
[1746983442849,0.04033804,2474.2,2474.1,0.05]
[1746983443058,0.23355355,2474.2,2474.1,0.05]
[1746983443268,3.75265084,2474.3,2474.1,0.05]
[1746983443415,0.18816353,2474.2,2474.1,0.05]
[1746983443855,0.04033804,2474.2,2474.1,0.05]
[1746983444309,0.60780046,2474.2,2474.1,0.05]
[1746983445421,0.22850157,2474.2,2474.1,0.05]
[1746983445625,0.18816353,2474.2,2474.1,0.05]
[1746983445833,0.22850157,2474.2,2474.1,0.05]
[1746983446035,0.04033804,2474.2,2474.1,0.05]
[1746983446544,0.22850157,2474.2,2474.1,0.05]
[1746983447369,0.18816353,2474.2,2474.1,0.05]
[1746983447581,0.04033804,2474.2,2474.1,0.05]
[1746983447870,0.22850157,2474.2,2474.1,0.05]
[1746983448161,0.22230972,2474.2,2474.1,0.05]
[1746983449877,0.61980578,2474.2,2474.1,0.05]
[1746983450083,1.16980578,2474.2,2474.1,0.05]
[1746983450434,5.99961623,2474.2,2474.1,0.05]
[1746983450634,0.55,2473.7,2473.1,0.05]
[1746983450933,3.75265084,2473.2,2473.1,0.05]
[1746983451139,4.97616079,2473.2,2473.1,0.05]
[1746983451670,4.38582275,2473.2,2473.1,0.05]
[1746983451851,4.97616079,2473.2,2473.1,0.05]
[1746983452227,3.93174767,2473.2,2473.1,0.05]
[1746983455878,4.48174767,2473.2,2473.1,0.05]
[1746983460150,3.93174767,2473.2,2473.1,0.05]
[1746983460345,3.97208571,2473.2,2473.1,0.05]
[1746983460852,0.17909683,2473.2,2473.1,0.05]
[1746983461273,3.75265084,2473.6,2473.1,0.05]
[1746983461578,0.04033804,2473.5,2473.1,0.05]
[1746983461783,0.17116394,2473.4,2473.1,0.05]
[1746983461999,3.75265084,2473.2,2473.1,0.05]
[1746983462461,3.92381478,2473.2,2473.1,0.05]
[1746983462775,4.47381478,2473.2,2473.1,0.05]
[1746983463077,4.51415282,2473.2,2473.1,0.05]
[1746983463373,8.55749747,2473.2,2473.1,0.05]
[1746983463578,5.77669071,2473.2,2473.1,0.05]
[1746983464385,8.69069071,2473.2,2473.1,0.05]
[1746983464790,12.73403536,2473.2,2473.1,0.05]
[1746983465071,8.65035267,2473.2,2473.1,0.05]
[1746983465373,8.69069071,2473.2,2473.1,0.05]
[1746983465578,13.50283536,2473.2,2473.1,0.05]
[1746983465780,9.41915267,2473.2,2473.1,0.05]
[1746983465983,9.45949071,2473.2,2473.1,0.05]
[1746983467075,5.22669071,2473.2,2473.1,0.05]
[1746983467382,3.92381478,2473.2,2473.1,0.05]
[1746983467557,3.96415282,2473.2,2473.1,0.05]
[1746983467944,4.51415282,2473.2,2473.1,0.05]
[1746983468974,12.51415282,2473.2,2473.1,0.05]
[1746983469276,12.47381478,2473.2,2473.1,0.05]
[1746983469577,13.72119626,2473.2,2473.1,0.05]
[1746983470465,5.72119626,2473.2,2473.1,0.05]
[1746983470682,5.7615343,2473.2,2473.1,0.05]
[1746983470866,3.96415282,2473.2,2473.1,0.05]
[1746983471679,12.51415282,2473.2,2473.1,0.05]
[1746983471882,17.28595943,2473.2,2473.1,0.05]
[1746983472839,17.28595943,2473.2,2472.1,0.8764]
[1746983472840,8.0,2472.9,2472.1,0.8764]
[1746983473075,3.75265084,2472.3,2472.1,0.8764]
[1746983473275,3.75265084,2472.6,2472.1,0.8764]
[1746983473444,0.04033804,2472.5,2472.1,0.8764]
[1746983473639,0.20877373,2472.5,2472.1,0.8764]
[1746983474575,0.16843569,2472.5,2472.1,0.8764]
[1746983474978,0.16843569,2472.5,2472.2,0.040448]
[1746983475280,0.04033804,2472.9,2472.2,0.040448]
[1746983475482,3.75265084,2473.1,2472.2,0.040448]
[1746983475483,0.16699693,2472.4,2472.3,8.8264]
[1746983475683,3.79298888,2473.1,2472.4,0.8264]
[1746983475871,3.75265084,2473.7,2472.7,0.8264]
[1746983476077,0.16699693,2473.0,2472.9,8.8264]
[1746983476378,0.04033804,2473.8,2472.9,8.8264]
[1746983476596,0.04033804,2473.8,2472.9,14.7114]
[1746983476597,3.75265084,2473.6,2472.9,14.7114]
[1746983476743,0.04033804,2473.5,2472.9,16.76634]
[1746983476949,0.16699693,2473.4,2472.9,14.7114]
[1746983478180,0.04033804,2473.5,2472.9,14.7114]
[1746983478391,0.16699693,2473.4,2472.9,14.7114]
[1746983478550,3.75265084,2473.6,2472.9,14.7114]
[1746983478749,0.16699693,2473.5,2472.9,14.7114]
[1746983478986,0.16699693,2473.5,2472.9,16.76634]
[1746983479486,0.16699693,2473.5,2473.1,0.7839]
[1746983479672,0.16699693,2473.5,2473.3,0.7839]
[1746983479876,3.75265084,2474.2,2473.3,0.7839]
[1746983479877,0.04033804,2474.1,2473.3,0.7839]
[1746983480072,3.75265084,2473.9,2473.3,0.7839]
[1746983480264,3.75265084,2473.6,2473.3,0.7839]
[1746983480583,0.2119968,2473.5,2473.3,0.7839]
[1746983481684,0.17165876,2473.5,2473.3,0.7839]
[1746983482186,3.75265084,2474.1,2473.4,0.0404258]
[1746983482348,3.75265084,2474.1,2473.5,8.7839]
[1746983482349,0.17165876,2474.0,2473.5,8.7839]
[1746983482553,0.17165876,2474.0,2473.5,10.29525458]
[1746983483156,3.75265084,2474.7,2473.8,0.7839]
[1746983483356,3.75265084,2474.7,2473.6,5.885]
[1746983483357,0.17165876,2474.6,2474.1,0.7839]
[1746983483560,3.75265084,2475.0,2474.1,6.6209]
[1746983483561,0.04033804,2474.9,2474.1,6.6209]
[1746983483805,0.17165876,2474.8,2474.1,6.6209]
[1746983484049,0.17165876,2474.8,2474.2,1.43589666]
[1746983484258,0.17165876,2474.8,2474.2,9.43589666]
[1746983484464,0.17165876,2474.8,2474.4,0.7643]
[1746983484663,0.17165876,2474.8,2474.4,8.7643]
[1746983484883,0.17165876,2474.8,2474.4,8.80470938]
[1746983485584,0.04033804,2474.9,2474.4,8.7643]
[1746983485776,0.17790201,2474.8,2474.4,8.7643]
[1746983486181,0.17790201,2474.8,2474.7,0.7643]
[1746983486354,0.05,2475.4,2474.7,0.7643]
[1746983486355,0.05,2475.4,2474.8,8.7643]
[1746983486686,0.05,2475.4,2475.0,0.7643]
[1746983486891,0.05,2475.4,2475.1,8.04039873]
[1746983487091,0.05,2475.4,2475.1,8.0]
[1746983487305,3.75265084,2475.3,2474.5,5.885]
[1746983487598,3.75265084,2475.0,2474.6,8.7643]
[1746983487958,0.19187841,2474.9,2474.6,8.7643]
[1746983488154,3.75265084,2475.0,2474.6,0.7643]
[1746983488379,0.19187841,2474.9,2474.6,0.7643]
[1746983488592,0.23221645,2474.9,2474.6,0.7643]
[1746983488758,0.43882477,2474.9,2474.6,0.7643]
[1746983488964,0.19187841,2474.8,2474.6,0.7643]
[1746983489188,3.75265084,2474.7,2474.4,2.91]
[1746983489557,3.75265084,2474.7,2474.5,8.0]
[1746983490092,3.75265084,2474.7,2474.4,2.91]
[1746983490472,3.75265084,2474.7,2474.5,8.0]
[1746983491667,0.04033804,2474.6,2474.0,0.8273]
[1746983491870,3.75265084,2474.4,2474.0,0.8273]
[1746983492074,0.04033804,2474.3,2473.9,2.909]
[1746983492403,0.2301864,2474.3,2473.9,2.909]
[1746983492755,0.2301864,2474.3,2473.8,2.909]
[1746983492996,0.2301864,2474.3,2473.9,8.0]
[1746983493197,0.62847012,2474.3,2473.9,8.0]
[1746983493498,3.75265084,2474.1,2473.9,8.0]
[1746983493698,0.04033804,2474.0,2473.4,0.8273]
[1746983493904,0.04033804,2474.0,2473.1,5.885]
[1746983493905,3.75265084,2473.7,2473.1,3.7363]
[1746983494064,0.04033804,2473.6,2473.1,3.7363]
[1746983494407,0.04033804,2473.6,2473.2,8.0]
[1746983495185,3.75265084,2473.4,2473.1,0.8273]
[1746983495392,3.75265084,2473.4,2472.8,0.8273]
[1746983495393,0.22790798,2473.3,2472.8,0.8273]
[1746983495610,0.18756994,2473.3,2472.9,0.04043357]
[1746983495905,3.75265084,2473.4,2472.8,0.8273]
[1746983496259,0.18756994,2473.3,2472.8,8.8273]
[1746983496700,0.04033804,2473.5,2472.9,0.04043358]
[1746983496902,0.04033804,2473.5,2472.8,8.8273]
[1746983497104,3.94022078,2473.4,2472.8,0.8273]
[1746983497416,3.75265084,2473.1,2472.8,8.8273]
[1746983497562,3.75265084,2473.1,2472.8,0.8273]
[1746983497760,0.17532952,2473.0,2472.8,0.8273]
[1746983497973,0.17532952,2473.0,2472.8,8.8273]
[1746983498279,3.75265084,2473.1,2472.8,0.8273]
[1746983498491,4.17951794,2473.1,2472.8,0.8273]
[1746983498827,0.17532952,2473.0,2472.8,0.8273]
[1746983500708,0.21566756,2473.0,2472.5,0.8292]
[1746983500908,0.21566756,2473.0,2472.2,5.885]
[1746983500909,3.75265084,2472.7,2472.2,6.7142]
[1746983501329,0.17458575,2472.6,2472.2,6.7142]
[1746983501628,0.04033804,2472.6,2472.2,6.7142]
[1746983501809,3.75265084,2472.4,2472.1,2.96]
[1746983502008,0.04033804,2472.3,2472.1,0.05]
[1746983502209,0.17458575,2472.2,2472.1,0.05]
[1746983502522,0.04033804,2472.3,2472.1,0.05]
[1746983502879,0.17354432,2472.2,2472.1,0.05]
[1746983503314,4.58445084,2472.4,2472.1,0.05]
[1746983503585,0.17007161,2472.3,2472.1,0.05]
[1746983503795,0.21040965,2472.3,2472.1,0.05]
[1746983504899,0.55,2472.2,2472.1,0.05]
[1746983505301,0.71411898,2472.2,2472.1,0.05]
[1746983506023,0.16411898,2472.2,2472.1,0.05]
[1746983506235,5.04289592,2472.4,2472.1,0.05]
[1746983506520,0.70745617,2472.3,2472.1,0.05]
[1746983507635,0.70745617,2472.3,2471.3,1.35890696]
[1746983507636,1.3421,2472.2,2471.3,1.35890696]
[1746983507821,3.75265084,2471.6,2471.3,1.35890696]
[1746983508126,0.16248107,2471.5,2471.3,1.35890696]
[1746983508927,0.20281911,2471.5,2471.3,1.35890696]
[1746983509133,0.59836611,2471.5,2471.3,1.35890696]
[1746983509513,0.55802807,2471.5,2471.3,1.35890696]
[1746983509711,0.16248107,2471.5,2471.3,1.35890696]
[1746983510114,4.54508888,2471.9,2471.3,1.35890696]
[1746983510323,0.16248107,2471.4,2471.3,1.35890696]
[1746983510525,4.54508888,2471.9,2471.3,1.35890696]
[1746983510710,0.16248107,2471.4,2471.3,1.35890696]
[1746983510915,0.04033804,2471.5,2471.3,1.35890696]
[1746983511128,0.91458107,2471.4,2471.1,0.05]
[1746983511328,0.16248107,2471.4,2471.1,0.05]
[1746983511500,0.20281911,2471.4,2471.1,0.05]
[1746983512040,0.16248107,2471.4,2471.1,0.05]
[1746983512736,3.79298888,2471.3,2471.1,0.05]
[1746983512937,0.395547,2471.2,2471.1,0.05]
[1746983513118,0.55574419,2471.2,2471.1,0.05]
[1746983513312,0.59608223,2471.2,2471.1,0.05]
[1746983513519,0.20053523,2471.2,2471.1,0.05]
[1746983513702,0.16019719,2471.2,2471.1,0.05]
[1746983514401,0.7521,2471.7,2471.1,0.05]
[1746983514645,0.20053523,2471.6,2471.2,0.7553]
[1746983517644,0.16019719,2471.6,2471.2,0.7553]
[1746983517819,3.75265084,2471.9,2471.2,1.63987647]
[1746983518019,0.15538149,2471.8,2471.2,1.63987647]
[1746983518544,0.15538149,2471.8,2471.4,8.7553]
[1746983518846,0.30751894,2472.8,2471.7,0.7553]
[1746983518847,3.75265084,2472.8,2471.7,0.7553]
[1746983519099,4.04201072,2474.1,2472.0,0.7553]
[1746983519100,0.13308772,2472.7,2472.0,0.7553]
[1746983519446,0.13308772,2472.7,2472.2,8.0]
[1746983519754,0.04033804,2472.8,2472.2,13.885]
[1746983520082,0.13761373,2472.7,2472.2,13.885]
[1746983520445,3.75265084,2472.9,2472.2,13.885]
[1746983520645,0.13761373,2472.8,2472.3,0.04044218]
[1746983520847,0.17795177,2472.8,2472.4,0.7553]
[1746983521082,0.13761373,2472.8,2472.4,0.7553]
[1746983521942,0.17795177,2472.8,2472.4,0.7553]
[1746983522205,0.13761373,2472.8,2472.4,0.7553]
[1746983522360,0.13761373,2472.8,2472.5,0.04044215]
[1746983522547,3.75265084,2473.2,2472.5,0.04044215]
[1746983522548,0.04033804,2473.1,2472.5,0.04044215]
[1746983522748,0.04033804,2473.1,2472.4,8.7553]
[1746983522990,0.1427856,2473.0,2472.4,8.7553]
[1746983523172,0.1427856,2473.0,2472.5,0.04043941]
[1746983523376,0.1427856,2473.0,2472.5,1.50851335]
[1746983523677,3.75265084,2473.5,2472.5,1.50851335]
[1746983523678,3.75265084,2473.2,2472.7,8.0]
[1746983523882,0.04033804,2473.1,2472.7,8.0]
[1746983525002,3.75265084,2472.9,2472.7,8.0]
[1746983525149,3.75265084,2472.9,2472.5,2.909]
[1746983525356,0.18466442,2472.8,2472.6,8.0]
[1746983525885,0.14432638,2472.8,2472.6,8.0]
[1746983526058,0.14432638,2472.8,2472.7,0.04044035]
[1746983526255,3.75265084,2473.5,2472.7,0.87304035]
[1746983526487,0.1438294,2473.4,2472.7,6.7176]
[1746983526688,0.1438294,2473.4,2472.8,1.47176]
[1746983527000,0.1438294,2473.4,2472.9,0.04043346]
[1746983527177,0.1438294,2473.4,2473.0,8.8326]
[1746983527507,3.79298888,2473.8,2473.0,14.7176]
[1746983527724,0.1438294,2473.3,2473.0,14.7176]
[1746983527871,3.79298888,2473.8,2473.0,16.396536]
[1746983528505,0.1438294,2473.7,2473.0,16.396536]
[1746983529414,0.1438294,2473.7,2473.1,0.04042893]
[1746983529597,0.1438294,2473.7,2473.0,14.7176]
[1746983529794,3.75265084,2473.5,2473.0,14.7176]
[1746983530114,0.571318,2473.4,2473.0,14.7176]
[1746983530307,0.15168107,2473.4,2473.0,14.7176]
[1746983530507,0.15168107,2473.4,2473.2,8.0]
[1746983530707,0.15168107,2473.4,2473.3,0.04042474]
[1746983530889,3.75265084,2473.9,2473.3,0.04042474]
[1746983531087,3.75265084,2473.9,2473.4,8.0]
[1746983531285,0.15168107,2473.8,2473.4,8.0]
[1746983531475,0.15168107,2473.8,2473.5,0.8091]
[1746983532004,0.15168107,2473.8,2473.7,8.0]
[1746983532219,3.79298888,2474.2,2473.7,8.0]
[1746983532390,0.15168107,2474.1,2473.7,8.0]
[1746983533406,0.15168107,2474.1,2473.7,9.50983046]
[1746983533611,0.09033804,2474.4,2473.7,9.50983046]
[1746983533809,0.15168107,2474.3,2473.7,15.39483046]
[1746983534111,0.15168107,2474.3,2473.7,15.35441]
[1746983535202,3.75265084,2474.2,2473.7,13.885]
[1746983535379,0.19574379,2474.1,2473.7,13.885]
[1746983536120,3.75265084,2473.9,2473.7,13.885]
[1746983536280,0.04033804,2473.8,2473.2,0.7834]
[1746983536480,3.75265084,2473.6,2473.2,8.7834]
[1746983536789,0.15341954,2473.5,2473.2,8.7834]
[1746983536995,0.15341954,2473.5,2473.2,0.82382879]
[1746983537304,3.75265084,2473.9,2473.2,8.82382879]
[1746983537772,0.15341954,2473.8,2473.2,8.82382879]
[1746983537976,0.19375758,2473.8,2473.2,2.54508288]
[1746983538211,0.19375758,2473.8,2473.3,8.0]
[1746983539314,0.15341954,2473.8,2473.3,8.0]
[1746983539614,0.19375758,2473.8,2473.3,8.0]
[1746983541985,0.19375758,2473.8,2473.3,13.885]
[1746983542814,0.15341954,2473.8,2473.3,15.35184]
[1746983543115,0.05,2474.4,2473.6,0.7661]
[1746983543300,0.05,2474.4,2473.8,8.0]
[1746983543487,0.15456204,2474.3,2473.8,8.0]
[1746983546391,3.75265084,2474.1,2473.7,5.885]
[1746983546730,3.75265084,2473.8,2472.8,0.7661]
[1746983546937,3.75265084,2473.6,2472.9,0.04043494]
[1746983547220,3.75265084,2473.6,2473.0,0.6]
[1746983547421,0.15580349,2473.5,2473.0,0.6]
[1746983547717,3.75265084,2473.3,2473.0,0.6]
[1746983547932,0.04033804,2473.2,2472.4,0.7661]
[1746983548101,3.75265084,2472.6,2472.1,3.6711]
[1746983548282,0.04033804,2472.5,2472.1,3.6711]
[1746983548482,3.75265084,2472.6,2472.2,8.0]
[1746983548911,3.75265084,2472.6,2472.1,3.6711]
[1746983549119,3.75265084,2472.6,2472.1,4.62671]
[1746983549489,3.75265084,2472.6,2472.2,8.0]
[1746983549814,0.15307196,2472.5,2472.1,3.6711]